bitfinex/quotes_ETHUSD_20250815
["timestamp","ask_amount","ask_price","bid_price","bid_amount"]
[1755234800099,3.75623813,4623.1,4622.2,2.16345768]
[1755234800282,3.7292,4623.0,4621.9,0.4871]
[1755234800799,3.289,4622.9,4622.1,2.16348233]
[1755234800991,3.289,4622.9,4622.2,2.42851802]
[1755234801195,3.291,4622.8,4622.3,0.01609154]
[1755234801500,3.291,4622.7,4622.3,2.16341352]
[1755234801697,3.291,4622.6,4621.8,0.4871]
[1755234802261,3.291,4622.6,4622.5,2.16333153]
[1755234802461,3.291,4622.6,4621.6,2.16373551]
[1755234802462,0.4658,4623.3,4622.2,0.4645]
[1755234802690,0.16537374,4623.3,4622.3,0.4339]
[1755234802889,3.291,4623.2,4622.4,0.4645]
[1755234803296,3.291,4623.2,4622.7,2.16322906]
[1755234803469,3.291,4623.2,4622.7,2.16319179]
[1755234803805,0.4755,4623.7,4621.9,0.01608965]
[1755234804039,10.178937,4623.6,4622.8,2.16318201]
[1755234804207,6.421137,4623.5,4622.8,2.16318201]
[1755234804528,6.421137,4623.5,4622.7,0.4645]
[1755234804733,3.293,4623.4,4622.7,0.4645]
[1755234805030,6.421137,4623.3,4622.6,2.16323879]
[1755234805231,0.4658,4623.2,4622.5,2.16332695]
[1755234805530,0.4658,4623.2,4622.1,0.4645]
[1755234805737,3.293,4623.4,4622.8,2.16315554]
[1755234805738,6.421137,4623.1,4622.8,2.16315554]
[1755234805907,0.16426155,4623.6,4622.8,0.4645]
[1755234806242,3.293,4623.5,4622.9,0.0160862]
[1755234806394,0.55,4624.2,4623.0,0.8984]
[1755234806609,3.293,4624.1,4623.7,2.16276442]
[1755234806949,3.293,4624.1,4623.8,2.62722055]
[1755234807103,0.55,4624.6,4623.9,0.4645]
[1755234807309,9.715137,4624.5,4623.9,0.4645]
[1755234807509,6.421137,4624.4,4623.9,2.62717256]
[1755234807723,6.421137,4624.4,4623.6,2.16277804]
[1755234808442,0.108,4624.2,4623.7,2.16277007]
[1755234808738,3.294,4624.1,4623.8,2.6272233]
[1755234809111,3.294,4624.1,4624.0,2.162597]
[1755234809714,3.294,4624.1,4624.0,2.627097]
[1755234810226,3.294,4624.1,4624.0,0.4645]
[1755234811440,3.294,4624.1,4623.8,2.16272318]
[1755234811954,3.294,4624.1,4623.9,2.62716423]
[1755234812449,3.294,4624.1,4623.8,2.16272307]
[1755234812752,3.294,4624.1,4623.7,2.16276778]
[1755234813355,3.294,4624.1,4623.6,0.3242778]
[1755234813529,3.294,4624.1,4623.6,0.108]
[1755234813853,3.7598,4624.1,4623.6,0.108]
[1755234814345,3.292,4624.0,4623.7,0.4645]
[1755234815050,2.1627233,4623.8,4622.9,0.55]
[1755234815220,2.1627233,4623.8,4622.8,0.001]
[1755234815221,0.108,4623.4,4622.8,0.001]
[1755234815419,2.16308981,4623.1,4622.8,0.001]
[1755234815620,0.108,4623.0,4622.8,0.001]
[1755234816017,0.4658,4622.9,4622.8,0.001]
[1755234816420,3.293,4622.9,4622.8,0.4655]
[1755234818940,3.293,4622.9,4622.8,0.001]
[1755234819559,0.4658,4623.9,4622.9,2.1630982]
[1755234819761,0.108,4623.4,4622.9,2.1630982]
[1755234819959,3.293,4623.3,4623.0,0.4645]
[1755234820268,3.293,4623.2,4623.1,0.4645]
[1755234820770,0.108,4623.4,4623.1,0.4645]
[1755234820965,3.293,4623.2,4623.0,2.1630956]
[1755234821172,0.108,4623.4,4623.1,0.4645]
[1755234821372,0.4658,4623.9,4622.8,0.001]
[1755234821373,3.293,4623.3,4623.2,2.62750397]
[1755234821868,5.191,4624.8,4623.6,2.16280584]
[1755234821869,0.16065753,4624.4,4623.6,2.16280584]
[1755234822040,0.108,4624.1,4623.6,2.16280905]
[1755234822367,3.292,4624.0,4623.8,2.16272121]
[1755234822569,3.293,4623.9,4623.7,2.16276257]
[1755234822761,3.293,4623.9,4623.5,2.27083087]
[1755234822762,3.293,4623.9,4623.8,2.6272233]
[1755234823156,3.292,4623.9,4623.8,2.6272233]
[1755234823359,3.292,4623.9,4623.8,0.4645]
[1755234823643,0.108,4624.1,4623.8,0.4645]
[1755234823844,3.292,4624.0,4623.8,0.4645]
[1755234824450,3.292,4623.9,4623.8,0.4645]
[1755234825581,3.292,4623.9,4623.8,0.4655]
[1755234826085,3.292,4623.9,4623.8,0.001]
[1755234826962,0.5707398,4624.7,4623.8,2.73617758]
[1755234827164,0.27214152,4624.7,4624.0,2.1626226]
[1755234827363,3.291,4624.6,4623.8,2.67589837]
[1755234827582,3.291,4624.6,4624.1,2.16257201]
[1755234827783,0.108,4624.7,4623.9,0.55]
[1755234827984,1.06912225,4625.0,4624.3,2.27044981]
[1755234828171,3.293,4624.9,4624.4,2.16242887]
[1755234828376,3.293,4624.9,4624.5,2.1623897]
[1755234828589,1.06912225,4625.0,4624.3,0.108]
[1755234828753,1.06912225,4625.0,4624.9,2.16220891]
[1755234828955,4.36212225,4625.0,4624.9,2.16220891]
[1755234829270,3.293,4625.0,4624.9,2.70410891]
[1755234829456,3.293,4625.0,4624.9,3.16860891]
[1755234829655,5.302,4625.6,4624.9,0.5725]
[1755234829971,5.194,4625.6,4625.2,2.27006492]
[1755234830170,3.293,4625.5,4625.3,0.4645]
[1755234830561,3.293,4625.4,4625.3,2.6264798]
[1755234831386,3.293,4625.4,4625.3,0.4645]
[1755234832196,3.293,4625.4,4625.2,0.108]
[1755234832900,3.293,4625.4,4625.2,2.74556396]
[1755234834000,3.293,4625.4,4625.2,0.5835]
[1755234834577,3.293,4625.4,4625.2,0.108]
[1755234835384,3.293,4625.4,4625.2,2.27006468]
[1755234835703,3.293,4625.4,4625.3,2.16202192]
[1755234835898,3.293,4625.4,4625.2,2.27006405]
[1755234836409,3.293,4625.4,4625.2,0.0336]
[1755234836803,3.293,4625.4,4625.2,2.19565349]
[1755234837007,3.293,4625.4,4625.2,0.0336]
[1755234837607,0.9096,4625.3,4624.7,2.27026972]
[1755234838105,0.4452,4625.3,4624.7,2.27026972]
[1755234838505,0.4452,4625.3,4624.7,0.108]
[1755234839421,2.16213218,4625.1,4624.2,2.16251222]
[1755234839594,0.108,4624.9,4624.2,0.108]
[1755234839793,0.4452,4624.8,4624.2,0.108]
[1755234839983,3.291,4624.7,4624.2,0.108]
[1755234840188,0.4452,4624.6,4624.0,2.16262292]
[1755234840388,0.4452,4624.6,4624.0,0.108]
[1755234840613,3.67534778,4624.6,4624.0,0.108]
[1755234840795,2.60760507,4624.5,4623.6,2.16277712]
[1755234841008,0.108,4624.2,4623.6,2.27077712]
[1755234841209,3.291,4624.1,4623.6,2.2708125]
[1755234841521,0.4452,4624.0,4623.6,2.2708125]
[1755234841729,0.4452,4624.0,4623.6,0.108]
[1755234841935,0.4452,4624.0,4623.7,2.16277007]
[1755234842332,0.4452,4624.0,4623.8,2.16271383]
[1755234842522,3.291,4624.1,4623.8,2.16271383]
[1755234842834,3.292,4624.0,4623.9,2.16267652]
[1755234843609,3.292,4624.0,4623.6,0.108]
[1755234843936,0.4452,4623.9,4623.6,2.27081554]
[1755234844138,0.4452,4623.9,4623.7,2.1627495]
[1755234844340,3.292,4624.0,4623.6,0.108]
[1755234844638,3.292,4624.0,4623.6,2.27079236]
[1755234844837,0.4452,4623.9,4623.6,2.27079236]
[1755234845016,3.292,4624.0,4623.6,0.108]
[1755234845219,0.4452,4623.8,4623.7,2.16277007]
[1755234845419,3.292,4624.0,4623.8,2.16268272]
[1755234845622,3.7372,4624.0,4623.9,2.16267652]
[1755234845817,0.108,4624.2,4623.7,0.01607517]
[1755234846027,3.291,4624.1,4624.0,2.16262975]
[1755234846844,0.108,4624.5,4624.0,2.16262975]
[1755234846845,0.108,4624.5,4624.1,2.16256029]
[1755234847215,3.291,4624.4,4624.1,2.16256029]
[1755234847723,3.291,4624.3,4624.1,2.16256029]
[1755234848135,3.291,4624.3,4624.0,2.63812338]
[1755234848332,3.291,4624.3,4624.0,2.16262338]
[1755234848516,3.291,4624.3,4624.1,2.16256906]
[1755234848717,3.291,4624.3,4624.1,2.16258197]
[1755234849425,3.291,4624.3,4623.7,0.4755]
[1755234849625,3.291,4624.3,4624.1,2.16257332]
[1755234850318,3.29,4624.2,4623.9,2.16266802]
[1755234850524,3.7352,4624.2,4623.9,2.16266802]
[1755234850748,3.29,4624.2,4623.9,2.16266802]
[1755234850934,0.4452,4624.1,4623.9,2.16266802]
[1755234851137,0.4452,4624.0,4623.9,2.16266802]
[1755234853323,0.4452,4624.0,4623.7,2.16273344]
[1755234853638,0.4452,4623.9,4623.6,2.27079136]
[1755234853838,3.289,4623.8,4623.6,0.108]
[1755234854236,0.4452,4623.7,4623.3,0.001]
[1755234854431,0.5532,4623.7,4623.3,0.001]
[1755234854750,0.4452,4623.6,4623.3,0.001]
[1755234855249,0.4452,4623.5,4623.3,0.001]
[1755234855454,3.29,4623.4,4623.3,0.001]
[1755234855747,3.7352,4623.4,4623.3,0.001]
[1755234857823,4.1996,4623.4,4623.3,0.001]
[1755234858465,7.00955343,4623.4,4623.3,0.001]
[1755234858642,13.53869043,4623.4,4623.3,0.001]
[1755234858848,13.64669043,4623.4,4623.3,0.001]
[1755234860263,13.18629043,4623.4,4623.3,0.001]
[1755234861054,13.65069043,4623.4,4623.3,0.001]
[1755234863223,14.01579615,4623.4,4623.3,0.001]
[1755234863462,14.22058262,4623.4,4623.3,0.001]
[1755234864274,14.11303883,4623.4,4623.3,0.001]
[1755234866944,7.69190183,4623.4,4623.3,0.001]
[1755234867178,14.11303883,4623.4,4623.3,0.001]
[1755234867473,10.81903883,4623.4,4623.3,0.001]
[1755234867642,14.11503883,4623.4,4623.3,0.001]
[1755234868245,10.35463883,4623.4,4623.3,0.001]
[1755234868468,13.65063883,4623.4,4623.3,0.001]
[1755234869792,14.10833883,4623.4,4623.3,0.001]
[1755234872394,10.81233883,4623.4,4623.3,0.001]
[1755234872581,13.65063883,4623.4,4623.3,0.001]
[1755234873169,14.10833883,4623.4,4623.3,0.001]
[1755234873600,13.65063883,4623.4,4623.3,0.001]
[1755234873906,14.82883051,4623.4,4623.3,0.001]
[1755234875317,13.67693883,4623.4,4623.3,0.001]
[1755234876309,13.20343883,4623.4,4623.3,0.001]
[1755234877002,13.67693883,4623.4,4623.3,0.001]
[1755234878302,7.25580183,4623.4,4623.3,0.001]
[1755234878598,13.67693883,4623.4,4623.3,0.001]
[1755234881279,10.38293883,4623.4,4623.3,0.001]
[1755234881475,13.20243883,4623.4,4623.3,0.001]
[1755234882804,13.67593883,4623.4,4623.3,0.001]
[1755234883494,14.25645847,4623.4,4623.3,0.001]
[1755234884082,14.04104455,4623.4,4623.3,0.001]
[1755234884282,15.27277074,4623.4,4623.3,0.001]
[1755234884486,15.27121367,4623.4,4623.3,0.001]
[1755234884797,14.49874455,4623.4,4623.3,0.001]
[1755234884991,14.04104455,4623.4,4623.3,0.001]
[1755234885505,13.67593883,4623.4,4623.3,0.001]
[1755234886402,14.23258245,4623.4,4623.3,0.001]
[1755234886606,14.59768817,4623.4,4623.3,0.001]
[1755234886904,15.05538817,4623.4,4623.3,0.001]
[1755234888487,16.21642745,4623.4,4623.3,0.001]
[1755234890207,15.75872745,4623.4,4623.3,0.001]
[1755234890580,9.33759045,4623.4,4623.3,0.001]
[1755234890781,15.75872745,4623.4,4623.3,0.001]
[1755234890981,15.96009938,4623.4,4623.3,1e-08]
[1755234891181,15.2567601,4623.4,4623.3,1e-08]
[1755234891601,2.16314434,4622.9,4622.8,0.001]
[1755234891910,26.32109225,4622.9,4622.8,0.001]
[1755234892227,26.73583617,4622.9,4622.8,0.001]
[1755234892791,26.64942349,4622.9,4622.8,0.001]
[1755234893111,23.59687614,4622.9,4622.8,0.001]
[1755234893296,24.44525091,4622.9,4622.8,0.001]
[1755234893492,27.73925091,4622.9,4622.8,0.001]
[1755234893689,27.53791916,4622.9,4622.8,0.001]
[1755234893920,24.00345013,4622.9,4622.8,0.001]
[1755234894250,27.55601916,4622.9,4622.8,0.001]
[1755234894532,28.32900413,4622.9,4622.8,0.001]
[1755234895629,27.97361817,4622.9,4622.8,0.001]
[1755234896150,25.12241817,4622.9,4622.8,0.001]
[1755234896503,28.77080413,4622.9,4622.8,0.001]
[1755234896746,28.32890093,4622.9,4622.8,0.001]
[1755234896932,29.35904833,4622.9,4622.8,0.001]
[1755234897245,27.40190288,4622.9,4622.8,0.001]
[1755234897402,24.10890288,4622.9,4622.8,0.001]
[1755234897603,27.40190288,4622.9,4622.8,0.001]
[1755234898211,27.84370935,4622.9,4622.8,0.001]
[1755234898415,28.19907913,4622.9,4622.8,0.001]
[1755234898618,29.35903862,4622.9,4622.8,0.001]
[1755234899461,29.82333862,4622.9,4622.8,0.001]
[1755234899749,29.35903862,4622.9,4622.8,0.001]
[1755234900205,25.62423862,4622.9,4622.8,0.001]
[1755234900409,27.2006332,4622.9,4622.8,0.001]
[1755234901712,27.97392692,4622.9,4622.8,0.001]
[1755234901919,27.97392692,4622.9,4622.8,0.4619]
[1755234902117,24.68092692,4622.9,4622.8,0.4619]
[1755234902332,23.9076332,4622.9,4622.8,0.4619]
[1755234902525,23.26059018,4622.9,4622.8,0.4619]
[1755234902726,26.55359018,4622.9,4622.8,0.4619]
[1755234902932,27.3268839,4622.9,4622.8,0.4619]
[1755234903134,23.26059018,4622.9,4622.8,0.4619]
[1755234903363,23.26059018,4622.9,4622.8,0.9134]
[1755234903364,7.4523854,4622.9,4622.8,0.9134]
[1755234903645,0.4609,4622.9,4622.8,0.9134]
[1755234903851,3.7549,4622.9,4622.8,0.9134]
[1755234904146,3.294,4622.9,4622.8,0.9134]
[1755234904346,3.294,4622.9,4622.8,1.22106792]
[1755234905019,0.108,4623.1,4622.8,0.4619]
[1755234905236,3.293,4623.0,4622.8,0.001]
[1755234905421,3.293,4623.0,4622.9,0.9124]
[1755234905911,0.108,4623.1,4622.9,0.9124]
[1755234906116,0.108,4623.7,4623.0,0.9124]
[1755234906445,3.293,4623.6,4623.1,0.9124]
[1755234906618,3.293,4623.6,4623.2,0.76984901]
[1755234906830,3.293,4623.6,4623.3,0.9124]
[1755234907033,3.293,4623.6,4623.4,0.9124]
[1755234907227,0.108,4623.7,4623.5,0.9124]
[1755234907438,3.295,4623.6,4623.3,2.16295458]
[1755234907643,3.295,4623.6,4623.3,0.24813036]
[1755234908055,3.295,4623.6,4623.4,0.9124]
[1755234908253,3.295,4623.6,4623.0,2.16309755]
[1755234908462,3.295,4623.6,4623.5,0.9124]
[1755234909518,0.108,4623.7,4623.5,0.9124]
[1755234909830,0.649988,4624.2,4623.7,2.16277007]
[1755234909831,5.303,4624.1,4623.7,2.16277007]
[1755234910035,0.649988,4624.2,4624.0,2.16262975]
[1755234910345,3.294,4624.1,4624.0,2.16262975]
[1755234910543,3.294,4624.1,4623.8,2.27071224]
[1755234910749,0.108,4624.4,4624.0,2.1626094]
[1755234911065,3.294,4624.3,4624.1,2.16254564]
[1755234911363,0.108,4624.4,4624.2,0.9124]
[1755234911546,0.108,4624.4,4624.3,0.9124]
[1755234911723,3.293,4624.4,4624.3,3.07488945]
[1755234911920,0.002,4625.0,4624.3,1.4361472]
[1755234911921,0.108,4624.8,4624.3,1.4361472]
[1755234912222,3.293,4624.7,4624.4,0.9284678]
[1755234912446,3.293,4624.7,4624.6,2.16234917]
[1755234912633,3.293,4624.7,4624.6,2.62324917]
[1755234912843,3.293,4624.7,4624.6,3.07474917]
[1755234913243,3.293,4624.7,4624.6,3.60926767]
[1755234913619,3.293,4624.7,4624.6,1.4469185]
[1755234914724,3.293,4624.7,4624.6,3.60926767]
[1755234916977,0.002,4625.0,4624.9,2.16220891]
[1755234917134,3.293,4625.0,4624.7,2.16229469]
[1755234917338,3.293,4625.0,4624.8,0.9124]
[1755234917865,3.293,4625.0,4624.9,0.4609]
[1755234918665,3.293,4625.0,4624.9,2.62310891]
[1755234918861,3.293,4625.0,4624.9,0.4609]
[1755234919364,0.002,4625.0,4624.9,2.62310891]
[1755234919566,0.002,4625.0,4624.9,3.33852611]
[1755234920933,0.002,4625.0,4624.9,1.1763172]
[1755234921435,0.002,4625.0,4624.9,3.33852611]
[1755234922356,0.002,4625.0,4624.9,0.7248172]
[1755234922929,0.002,4625.0,4624.9,2.88702611]
[1755234923438,0.002,4625.0,4624.9,0.7248172]
[1755234923761,0.002,4625.0,4624.9,0.4609]
[1755234923935,0.002,4625.0,4624.9,2.62310891]
[1755234924134,0.002,4625.0,4624.9,3.17310891]
[1755234924841,0.002,4625.0,4624.9,3.64520891]
[1755234931044,0.002,4625.0,4624.9,3.66127168]
[1755234931340,0.002,4625.0,4624.9,4.58322846]
[1755234931545,0.002,4625.0,4624.9,4.56716569]
[1755234940096,1e-08,4625.0,4624.9,4.09506569]
[1755234940791,1e-08,4625.0,4624.9,4.58322846]
[1755234941097,1e-08,4625.0,4624.9,4.56716569]
[1755234943700,1e-08,4625.2,4625.1,0.55]
[1755234943866,1e-08,4625.2,4625.1,7.40149241]
[1755234944070,1e-08,4625.2,4625.1,8.33503198]
[1755234944777,1e-08,4625.2,4625.1,7.86293198]
[1755234945198,1e-08,4625.2,4625.1,7.38543198]
[1755234945800,1e-08,4625.2,4625.1,3.54643198]
[1755234945801,0.44520001,4625.2,4625.1,3.54643198]
[1755234946081,0.91470001,4625.2,4625.1,2.27011541]
[1755234947719,1.37892517,4625.2,4625.1,2.27011541]
[1755234950393,0.90942517,4625.2,4625.1,2.27011541]
[1755234950588,0.46422517,4625.2,4625.1,2.27011541]
[1755234950818,1e-08,4625.2,4625.1,2.27011541]
[1755234950980,1e-08,4625.2,4625.1,3.59234603]
[1755234951185,1e-08,4625.2,4625.1,7.37490646]
[1755234951384,1e-08,4625.2,4625.1,7.35884603]
[1755234951613,1e-08,4625.2,4625.1,7.83094603]
[1755234952796,1e-08,4625.2,4625.1,7.35884603]
[1755234954004,1e-08,4625.2,4625.1,3.04234603]
[1755234954321,0.46840001,4625.2,4625.1,5.56011541]
[1755234954621,0.46840001,4625.2,4625.1,6.11011541]
[1755234955426,1e-08,4625.2,4625.1,6.11011541]
[1755234956418,1e-08,4625.2,4625.1,2.82011541]
[1755234956623,0.46840001,4625.2,4625.1,6.11011541]
[1755234956821,1e-08,4625.2,4625.1,7.36234603]
[1755234957033,1e-08,4625.2,4625.1,7.83974603]
[1755234958240,1e-08,4625.2,4625.1,7.84074603]
[1755234958526,1e-08,4625.2,4625.1,4.07334603]
[1755234958717,1e-08,4625.2,4625.1,7.36334603]
[1755234960239,1e-08,4625.2,4625.1,7.84074603]
[1755234960423,1e-08,4625.2,4625.1,4.55074603]
[1755234960634,1e-08,4625.2,4625.1,7.36234603]
[1755234961409,1e-08,4625.2,4625.1,11.61234603]
[1755234962719,1e-08,4625.2,4625.1,12.08974603]
[1755234963306,0.002,4626.4,4625.5,0.55]
[1755234963511,0.002,4626.4,4625.9,2.71174149]
[1755234963712,0.002,4626.4,4625.9,6.10874149]
[1755234964237,0.4684,4626.3,4625.9,6.10874149]
[1755234964438,0.4704,4626.0,4625.9,2.81974149]
[1755234964643,0.4704,4626.0,4625.9,6.10874149]
[1755234964842,0.4704,4626.0,4625.9,6.10974149]
[1755234966049,14.57546044,4626.0,4625.9,0.108]
[1755234966411,14.73521708,4626.0,4625.9,0.108]
[1755234966611,1.09015664,4626.0,4625.1,0.001]
[1755234966829,0.4684,4625.9,4625.1,0.001]
[1755234967035,0.4684,4625.9,4625.7,2.16183115]
[1755234967205,0.16175664,4626.0,4625.7,2.16183115]
[1755234967411,0.4684,4625.8,4625.7,2.16183115]
[1755234967622,0.9284,4625.8,4625.5,2.16188893]
[1755234967850,0.9284,4625.7,4625.5,2.16188893]
[1755234968037,0.16175664,4626.0,4625.5,2.16188893]
[1755234968038,0.002,4626.0,4625.5,2.16188893]
[1755234968216,0.9284,4625.6,4625.3,2.16198935]
[1755234968413,0.9284,4625.5,4625.3,2.16198935]
[1755234968613,0.002,4626.0,4625.4,2.16197518]
[1755234968813,0.002,4626.0,4625.5,2.16192184]
[1755234969027,0.002,4626.0,4625.3,2.16200155]
[1755234969226,0.9284,4625.9,4625.4,2.16193176]
[1755234969441,0.9284,4625.8,4625.4,2.16193176]
[1755234969666,0.002,4626.0,4625.5,2.16192508]
[1755234969841,0.9284,4625.7,4625.5,2.16192508]
[1755234970037,0.002,4626.0,4625.7,2.16183116]
[1755234970249,0.002,4626.0,4625.1,0.551]
[1755234970450,0.46,4625.9,4625.3,2.16199002]
[1755234970761,0.46,4625.9,4625.1,0.001]
[1755234970762,0.4684,4625.8,4625.1,2.16307433]
[1755234970980,0.9284,4625.8,4625.1,0.001]
[1755234971326,0.95542293,4625.7,4625.1,0.001]
[1755234971529,0.02702352,4625.6,4625.1,0.001]
[1755234971969,0.95542352,4625.6,4625.1,0.001]
[1755234972345,0.9284,4625.5,4625.1,0.001]
[1755234972545,15.80704238,4625.4,4625.1,0.001]
[1755234972846,16.73544238,4625.4,4625.1,0.001]
[1755234973083,0.9284,4625.3,4625.1,0.001]
[1755234973464,3.298,4625.6,4625.1,0.001]
[1755234973465,0.4684,4625.2,4625.1,0.001]
[1755234973649,0.46481865,4625.8,4625.3,2.16197671]
[1755234973853,0.4684,4625.6,4625.4,0.0160561]
[1755234974382,0.4684,4625.5,4625.1,2.16310612]
[1755234974579,3.3,4626.0,4625.1,0.001]
[1755234974780,0.4684,4625.9,4625.1,0.551]
[1755234975087,0.4684,4625.9,4625.7,2.16182319]
[1755234975287,0.002,4626.0,4625.7,2.16182319]
[1755234975603,0.4684,4625.8,4625.7,2.16182319]
[1755234975888,0.002,4626.0,4625.9,2.16174149]
[1755234976278,0.002,4626.0,4625.9,2.59409796]
[1755234976650,0.002,4626.0,4625.9,2.70209796]
[1755234977216,0.002,4626.0,4625.9,4.20364905]
[1755234977685,0.002,4626.0,4625.9,3.72949796]
[1755234981206,0.002,4626.0,4625.9,4.18759796]
[1755234981612,0.002,4626.2,4626.1,2.71164804]
[1755234981806,0.002,4626.4,4626.3,2.16155459]
[1755234982107,0.002,4626.4,4626.3,2.71155459]
[1755234982300,0.002,4626.4,4626.3,3.72905459]
[1755234982497,0.002,4627.3,4626.8,0.55]
[1755234982702,0.002,4627.3,4626.9,6.00927428]
[1755234982908,0.002,4627.3,4626.9,6.11727428]
[1755234983278,0.002,4627.3,4626.9,6.59687428]
[1755234989961,0.002,4627.3,4626.9,6.11727428]
[1755234991447,0.002,4627.3,4626.9,6.59687428]
[1755234991651,0.002,4627.3,4626.9,7.51592443]
[1755234994855,0.002,4627.3,4626.9,7.94582443]
[1755234995465,0.002,4627.3,4626.9,7.03632443]
[1755234995679,0.002,4627.3,4626.9,7.51592443]
[1755234997440,0.002,4627.3,4626.9,3.73832443]
[1755234997644,0.434,4627.0,4626.9,7.02932443]
[1755234998896,0.002,4627.0,4626.9,7.02932443]
[1755234999189,0.434,4627.0,4626.9,7.02932443]
[1755234999788,0.434,4627.0,4626.9,11.27932443]
[1755235002007,0.434,4627.0,4626.9,7.02932443]
[1755235003111,0.002,4627.0,4626.9,7.02932443]
[1755235003477,0.434,4627.0,4626.9,7.02932443]
[1755235006734,0.8903,4627.0,4626.9,0.108]
[1755235007842,0.8903,4627.0,4626.5,0.55]
[1755235008044,0.9963,4626.9,4626.2,3.397]
[1755235008242,0.108,4626.9,4626.2,5.5585576]
[1755235008442,0.8883,4626.8,4626.3,2.16151173]
[1755235008645,0.108,4626.9,4626.5,0.55]
[1755235008820,0.54,4626.9,4626.7,2.16136019]
[1755235009022,0.432,4626.8,4626.7,2.71136019]
[1755235009549,0.8883,4626.8,4626.7,2.81936019]
[1755235009708,0.432,4626.8,4626.7,2.81936019]
[1755235010942,0.002,4627.0,4626.8,2.16130963]
[1755235011351,0.432,4626.9,4626.7,0.658]
[1755235011516,0.432,4626.9,4626.7,2.81935507]
[1755235011717,0.8883,4626.9,4626.7,0.658]
[1755235012119,0.4648,4626.8,4626.7,2.81936771]
[1755235012319,0.101144,4626.8,4626.7,2.81936771]
[1755235012815,0.002,4627.0,4626.8,0.55]
[1755235013015,0.002,4627.0,4626.9,2.16127428]
[1755235014555,0.4668,4627.0,4626.9,2.16127428]
[1755235015065,0.002,4627.0,4626.9,2.16127428]
[1755235015841,0.002,4627.0,4626.9,2.71127428]
[1755235016629,0.002,4627.0,4626.9,3.36389454]
[1755235021285,0.4668,4627.0,4626.9,2.71127428]
[1755235022518,0.002,4627.0,4626.9,2.71127428]
[1755235023901,0.002,4627.0,4626.9,0.55]
[1755235024609,0.002,4627.0,4626.9,2.71127428]
[1755235025378,0.002,4627.0,4626.9,3.67887428]
[1755235025581,0.002,4627.0,4626.9,5.02759785]
[1755235025775,0.002,4627.0,4626.9,4.55679785]
[1755235026785,0.002,4627.0,4626.9,1.89872357]
[1755235026986,0.002,4627.0,4626.9,4.05999785]
[1755235028420,0.002,4627.0,4626.9,5.02759785]
[1755235028982,0.002,4627.0,4626.9,4.55679785]
[1755235029224,0.002,4627.0,4626.9,3.20807428]
[1755235030387,0.002,4627.0,4626.9,1.0468]
[1755235030719,0.002,4627.0,4626.9,0.55]
[1755235033192,0.9411,4627.0,4626.7,0.108]
[1755235033393,2.16132099,4626.8,4626.7,0.108]
[1755235033808,0.9391,4626.8,4626.7,0.108]
[1755235034023,0.9391,4626.8,4626.6,0.001]
[1755235034210,0.4648,4626.7,4626.6,0.001]
[1755235037040,2.62616771,4626.7,4626.6,0.001]
[1755235037562,0.4648,4626.7,4626.6,0.001]
[1755235037840,2.62616771,4626.7,4626.6,0.001]
[1755235038045,3.10046771,4626.7,4626.6,0.001]
[1755235038412,2.62616771,4626.7,4626.6,0.001]
[1755235038822,3.10046771,4626.7,4626.6,0.001]
[1755235039018,2.62616771,4626.7,4626.6,0.001]
[1755235039249,10.04715204,4626.7,4626.6,0.001]
[1755235039544,10.62117934,4626.7,4626.6,0.001]
[1755235040417,13.90817934,4626.7,4626.6,0.001]
[1755235043450,13.90817934,4626.7,4626.6,1e-08]
[1755235044113,14.48873574,4626.7,4626.6,1e-08]
[1755235044770,2.16160131,4626.2,4626.1,0.001]
[1755235045071,26.05511172,4626.2,4626.1,0.001]
[1755235045275,26.52113902,4626.2,4626.1,0.001]
[1755235045434,27.46803902,4626.2,4626.1,0.001]
[1755235045867,21.04690202,4626.2,4626.1,0.001]
[1755235046036,27.46803902,4626.2,4626.1,0.001]
[1755235046437,26.97353902,4626.2,4626.1,0.001]
[1755235046871,2.73562861,4626.2,4626.1,0.001]
[1755235047166,5.55660131,4626.2,4626.1,0.001]
[1755235048664,6.00900131,4626.2,4626.1,0.001]
[1755235049052,6.50350131,4626.2,4626.1,0.001]
[1755235049254,13.38835531,4626.2,4626.1,0.001]
[1755235049455,14.07585627,4626.2,4626.1,0.001]
[1755235052554,7.65471927,4626.2,4626.1,0.001]
[1755235052753,14.07585627,4626.2,4626.1,0.001]
[1755235053658,13.58135627,4626.2,4626.1,0.001]
[1755235054955,13.58135627,4626.2,4626.1,1e-08]
[1755235055292,14.07585627,4626.2,4626.1,1e-08]
[1755235056960,13.12895627,4626.2,4626.1,1e-08]
[1755235057363,13.21558827,4626.2,4626.1,1e-08]
[1755235057683,13.66798827,4626.2,4626.1,1e-08]
[1755235058470,14.16248827,4626.2,4626.1,1e-08]
[1755235059187,13.66798827,4626.2,4626.1,1e-08]
[1755235060959,10.38098827,4626.2,4626.1,1e-08]
[1755235061201,13.66898827,4626.2,4626.1,1e-08]
[1755235062997,13.21658827,4626.2,4626.1,1e-08]
[1755235063296,13.21558827,4626.2,4626.1,1e-08]
[1755235067415,9.24108731,4626.2,4626.1,1e-08]
[1755235067614,9.24108731,4626.2,4626.1,0.93550001]
[1755235067771,2.24823331,4626.2,4626.1,0.93550001]
[1755235067977,5.53523331,4626.2,4626.1,0.93550001]
[1755235068277,3.287,4626.2,4626.1,0.93550001]
[1755235069409,3.75195057,4626.2,4626.1,0.93550001]